Cogmind - Beta 15 @@@ ROGUE MODE // 2025.10.14 @ 17:02:40 Player: Runagate Result: Destroyed by P-70 Sage with Tesla Rifle Performance ------------- Evolutions (5) 2500 Regions Visited (10) 2000 Robots Destroyed (217) 1085 Value Destroyed (7473) 7473 Prototype IDs (7) 140 Alien Tech Used (0) 0 Bonus (1474) 1474 TOTAL SCORE: 14672 Bonus ------- High Alert Combat Kills 6 Follower Combat Kills 768 Network Hubs Disabled 200 Met R17 at Cetus 500 Cogmind --------- Core Integrity 0/1000 Matter 272/300 Energy 99/100 System Corruption 10% Temperature Cool (0) Movement Core (50) Location -5/Factory Parts ------- > --- POWER (2) -------- (None) > --- PROPULSION (5) --- (None) > --- UTILITY (6) ------ (None) > --- WEAPON (4) ------- (None) > --- INVENTORY (5) ---- Fission Core Quantum Reactor Titanium Leg Improved VSS Leg Improved Sensor Array Peak State ------------ > --- POWER ------------ Light Angular Momentum Engine Light Fission Core > --- PROPULSION ------- Improved Titanium Leg Flexi-carbon Leg Armored Leg Thunder Leg Thunder Leg > --- UTILITY ---------- Advanced Heat Sink Advanced Heat Sink High-capacity Storage Unit Weapon Mount Core Analyzer Improved Transmission Jammer > --- WEAPON ----------- Improved Arc Projector Heavy Laser Wave Gun Heavy Machine Gun > --- INVENTORY -------- Fission Core Light Fission Core Light Fission Core Neutrino Core Quantum Reactor Carbon-fiber Leg Titanium Leg Titanium Leg Improved Titanium Leg Improved VSS Leg Advanced Heat Sink Energy Well Improved Sensor Array Weapon Mount Layered Light Armor Plating Layered Light Armor Plating System Shield Improved Medium Laser Heavy Missile Launcher Improved Plasma Cutter [Rating: 92] Favorites ----------- Power Heavy Ion Engine Engine Heavy Ion Engine Power Core Neutrino Core Reactor Quantum Reactor Propulsion Aluminum Leg Leg Aluminum Leg Flight Unit VTOL Module Utility Improved Cooling System Device Improved Cooling System Storage High-capacity Storage Unit Processor Core Analyzer Protection Layered Light Armor Plating Weapon Gatling Laser Energy Gun Gatling Laser Energy Cannon Plasma Cannon Ballistic Gun Assault Rifle Launcher Grenade Launcher Build | -11 -10 -9 -8 -7 -6 -6 -6 -6 -6 -5 ------- Run | Yrd Mat Mat Mat Fac Fac Ext Cet Arc Hub Fac Slots Evolved 10 | . . 2 2 2 2 . . . . 2 Power 1 | . . . . 1 . . . . . . Propulsion 3 | . . 2 . . 1 . . . . . Utility 4 | . . . 1 1 1 . . . . 1 Weapon 2 | . . . 1 . . . . . . 1 Parts Attached 185 | 8 14 20 37 18 8 25 11 4 10 30 Power 24 | 1 1 3 5 3 . 3 3 . 2 3 Engine 15 | 1 1 3 4 2 . 1 . . 2 1 Core 6 | . . . 1 1 . 2 . . . 2 Reactor 3 | . . . . . . . 3 . . . Propulsion 65 | 2 8 7 16 4 3 10 3 1 1 10 Treads . | . . . . . . . . . . . Leg 64 | 2 8 7 16 4 3 10 3 1 1 9 Wheel . | . . . . . . . . . . . Hover . | . . . . . . . . . . . Flight 1 | . . . . . . . . . . 1 Utility 39 | 2 2 3 7 5 4 2 2 1 3 8 Device 30 | 1 1 2 7 4 2 2 2 1 3 5 Storage 5 | 1 1 1 . 1 1 . . . . . Processor 1 | . . . . . 1 . . . . . Hackware . | . . . . . . . . . . . Protection 3 | . . . . . . . . . . 3 Artifact . | . . . . . . . . . . . Weapon 57 | 3 3 7 9 6 1 10 3 2 4 9 Energy Gun 44 | . . 4 7 5 1 10 3 2 4 8 Energy Cannon 3 | . 1 . 2 . . . . . . . Ballistic Gun 8 | 3 1 3 . . . . . . . 1 Ballistic Cannon . | . . . . . . . . . . . Launcher 2 | . 1 . . 1 . . . . . . Special Weapon . | . . . . . . . . . . . Impact Weapon . | . . . . . . . . . . . Slashing Weapon . | . . . . . . . . . . . Piercing Weapon . | . . . . . . . . . . . Special Melee Weapon . | . . . . . . . . . . . Unidentified Prototypes 7 | . . 3 1 1 . . 1 . . 1 Corrupted Parts 1 | . . . . . . 1 . . . . System Corruption 6 | . . . . . . 6 . . . . Parts Lost 43 | . 1 1 5 2 . 5 1 4 11 13 Power 8 | . 1 . 1 1 . 2 . . 2 1 Propulsion 8 | . . . . . . 1 . 2 2 3 Utility 7 | . . . 2 1 . 1 . . 2 1 Weapon 20 | . . 1 2 . . 1 1 2 5 8 Highest Loss Streak 7 | . 1 1 4 1 . 1 1 3 4 7 To Critical Strikes . | . . . . . . . . . . . Average Backups 15 | 1 8 12 14 14 15 19 19 17 17 17 Power 2 | . . 1 2 1 1 1 3 3 4 4 Propulsion 3 | . 1 2 3 4 4 6 6 5 4 4 Utility 3 | . 2 3 3 3 3 5 5 5 5 6 Weapon 5 | . 3 5 6 5 6 7 5 4 3 1 Tool/Special . | . . . . . . . . . . . Unused Backups 28 | . 1 3 5 3 . . 2 . 1 13 Power 7 | . . . . . . . 2 . . 5 Propulsion 4 | . . . . . . . . . . 4 Utility 5 | . . 1 1 . . . . . . 3 Weapon 11 | . 1 2 4 3 . . . . 1 . Tool/Special 1 | . . . . . . . . . . 1 Average Slot Usage (%) 98 | . 98 99 98 99 98 98 99 99 98 92 Engine 7 | . 13 11 7 9 13 5 . . 2 2 Core 2 | . . . . 4 . 7 3 . . 7 Reactor 2 | . . . . . . . 9 13 10 . Leg 33 | . 28 43 36 30 33 32 33 32 32 26 Device 17 | . 14 10 17 14 22 19 20 20 19 18 Storage 8 | . 14 10 9 14 8 6 6 6 6 4 Processor 2 | . . . . . . 6 6 6 6 4 Energy Gun 16 | . . 14 19 20 20 19 19 19 18 15 Energy Cannon 2 | . 7 . 7 1 . . . . . . Ballistic Gun 2 | . 16 6 . . . . . . . 4 Peak Build Rating 92 | 7 8 18 41 49 63 81 90 90 84 92 Average Rating 49 | 5 7 15 31 45 57 72 88 83 79 78 On Entrance 44 | . 7 8 18 41 49 61 79 90 83 54 Naked Turns 84 | . . . . . . . . . . 84 Heaviest Build 102 | 15 21 36 50 57 78 89 101 102 101 88 Greatest Support 102 | 20 20 40 69 72 87 101 101 101 91 102 Greatest Overweight (x) 1 | . 1 . . . . 1 . 1 1 1 Average Overweight (x) . | . . . . . . . . . . . Largest Inventory Capacity 20 | 8 10 15 15 15 20 20 20 20 20 20 Average Capacity 16 | 7 9 12 15 15 18 20 20 20 20 18 Most Carried 20 | 2 10 15 15 15 20 20 20 20 20 20 Average Carried 15 | 1 8 12 14 14 15 19 19 17 17 18 Final Capacity 20 | 8 10 15 15 15 20 20 20 20 20 5 Final Carried 20 | 2 10 14 15 15 20 20 20 17 19 5 Class Distribution -------------------- 57% | Scavenger-Gunner 17% | Scavenger-Mutant 13% | Gunner 11% | Mutant Dominant Class ---------------- Scavenger-Mutant | -10/Materials Scavenger-Mutant | -9/Materials Scavenger-Gunner | -8/Materials Scavenger-Gunner | -7/Factory Scavenger-Gunner | -6/Factory Scavenger-Gunner | -6/Extension Scavenger-Gunner | -6/Cetus Scavenger-Gunner | -6/Archives Scavenger-Gunner | -6/Hub_04(d) Scavenger-Gunner | -5/Factory Resources | -11 -10 -9 -8 -7 -6 -6 -6 -6 -6 -5 ----------- Run | Yrd Mat Mat Mat Fac Fac Ext Cet Arc Hub Fac Matter Collected 3858 | 472 452 492 465 308 163 372 188 109 156 681 Remotely . | . . . . . . . . . . . Salvage Created 9265 | 306 720 1333 1715 566 554 1027 202 312 1033 1497 Parts 390 | 23 51 69 69 21 18 36 6 4 36 57 Haulers Intercepted 8 | . 1 3 2 . . . . . 1 1 Recyclers Shooed 3 | . . 2 . 1 . . . . . . Parts Field Recycled . | . . . . . . . . . . . Retrieved Matter . | . . . . . . . . . . . Parts Self-Destructed . | . . . . . . . . . . . Prevented . | . . . . . . . . . . . Kills | -11 -10 -9 -8 -7 -6 -6 -6 -6 -6 -5 ------- Run | Yrd Mat Mat Mat Fac Fac Ext Cet Arc Hub Fac Combat Hostiles Destroyed 148 | . 16 24 29 11 5 20 3 4 15 21 Guns 117 | . 4 22 22 10 4 16 3 3 14 19 Cannons 5 | . 2 . 2 1 . . . . . . AOE 11 | . 10 . . . . . . . . 1 Classes Destroyed 17 | 3 6 1 2 1 . 2 . . 1 1 Worker 17 | 2 2 3 2 . 2 . . . 2 4 Builder 10 | . 4 1 2 1 . . . . 2 . Tunneler 14 | 9 2 1 1 . . . . . 1 . Hauler 8 | . 1 3 2 . . . . . 1 1 Recycler 11 | 1 1 2 3 1 2 . . . . 1 Mechanic 1 | . . . . . . . . . . 1 Operator 4 | . 1 1 . . . 1 . . . 1 Watcher 4 | . 1 . . . 1 1 . . 1 . Swarmer 22 | . 3 7 3 . . 6 . . . 3 Grunt 72 | . 13 10 17 6 2 4 2 . 7 11 Duelist 3 | . . . 1 1 1 . . . . . Sentry 32 | . . 7 6 2 1 6 . 4 4 2 Specialist 2 | . . . 2 . . . . . . . Hunter 5 | . . . . . . 2 . . 2 1 Programmer 8 | . . . . 2 1 . . . 1 4 Heavy 1 | . . . . . . . . . 1 . Behemoth 2 | . . . . . . 2 . . . . Cetus Guard 1 | . . . . . . . 1 . . . Best Kill Streak 7 | 5 5 5 5 7 5 5 2 2 7 7 Combat Bots Only 7 | . 5 4 4 7 3 5 2 2 4 5 Max Kills in Single Turn 3 | 1 2 1 2 1 1 2 1 1 3 2 Gunslinging 1 | . . . . . . 1 . . . 1 Exploded 2 | . 2 . . . . . . . . 1 Melee . | . . . . . . . . . . . Uniques/NPCs Destroyed . | . . . . . . . . . . . Combat | -11 -10 -9 -8 -7 -6 -6 -6 -6 -6 -5 -------- Run | Yrd Mat Mat Mat Fac Fac Ext Cet Arc Hub Fac Hostile Shots Fired 1004 | . 75 117 161 68 30 175 18 35 97 228 Missed 325 | . 27 38 39 22 16 56 5 9 29 84 Hits 679 | . 48 79 122 46 14 119 13 26 68 144 Melee 1 | . . . . . 1 . . . . . Projectile 678 | . 48 79 122 46 13 119 13 26 68 144 AOE 1 | . . . . . . 1 . . . . Critical Strikes 22 | . . 2 7 2 . 2 2 1 1 5 Part Disruptions 1 | . . . . . . . . . . 1 Damage Taken 10757 | . 557 954 1692 612 179 1493 428 596 1331 2915 Core 1945 | . 45 169 191 97 5 191 46 . 186 1015 Absorbed by Shields 53 | . . . . . . 53 . . . . Regen/Repaired (Parts) 169 | . . 169 . . . . . . . . Core Remaining (%) 73 | 100 82 57 65 86 . . . . 49 . Volleys Fired 475 | 32 46 98 104 29 16 41 17 13 31 48 Largest 4 | 2 2 2 3 3 3 3 3 3 3 4 Hottest 405 | 40 90 126 240 240 235 255 400 405 405 271 Shots Fired 1187 | 64 88 194 249 85 48 115 46 38 89 171 Gun 1091 | 64 49 192 208 73 48 115 46 38 89 169 Cannon 76 | . 23 1 41 11 . . . . . . Launcher 20 | . 16 1 . 1 . . . . . 2 Special . | . . . . . . . . . . . Kinetic 202 | 64 49 44 . . . . . . . 45 Thermal 943 | . 23 149 249 84 48 115 41 38 89 107 Explosive 20 | . 16 1 . 1 . . . . . 2 Electromagnetic 22 | . . . . . . . 5 . . 17 Robot Hit Streak 32 | 5 10 13 15 32 12 20 19 25 27 19 Robot Miss Streak 8 | 3 4 5 5 8 3 4 1 1 2 4 Penetration Max . | . . . . . . . . . . . Secondary Targets 21 | . 3 1 6 1 . 4 1 . . 5 Max Gunslinging Chain 1 | . 1 1 1 1 . 1 1 . . 1 Shots Hit Robots 833 | 32 53 125 159 66 39 92 33 32 72 130 Core Hits 493 | 12 42 45 62 48 38 53 17 11 71 94 Critical Kills 1 | . . . 1 . . . . . . . Critical Parts Destroyed 1 | . . 1 . . . . . . . . Critical Strikes 34 | . . 6 4 . . 9 3 3 1 8 Burn 32 | . . 5 3 . . 9 3 3 1 8 Meltdown 1 | . . . 1 . . . . . . . Destroy 1 | . . 1 . . . . . . . . Melee Attacks . | . . . . . . . . . . . Impact . | . . . . . . . . . . . Slashing . | . . . . . . . . . . . Piercing . | . . . . . . . . . . . Sneak Attacks . | . . . . . . . . . . . Combat Hostiles . | . . . . . . . . . . . Follow-up Attacks . | . . . . . . . . . . . Damage Inflicted 19899 | 436 1496 2080 3164 1658 956 1824 713 764 2582 4226 Guns 16401 | 436 420 2034 2515 1581 956 1824 713 764 2118 3040 Cannons 950 | . 228 . 645 77 . . . . . . Explosions 2417 | . 845 28 . . . . . . 392 1152 Melee . | . . . . . . . . . . . Ramming 131 | . 3 18 4 . . . . . 72 34 Kinetic 1863 | 436 420 340 . . . . . . . 667 Thermal 15288 | . 228 1694 3160 1658 956 1824 638 764 2135 2231 Explosive 1859 | . 845 28 . . . . . . . 986 Electromagnetic 758 | . . . . . . . 75 . 375 308 Impact . | . . . . . . . . . . . Slashing . | . . . . . . . . . . . Piercing . | . . . . . . . . . . . Highest Corruption 14 | . . . 2 . 2 9 9 9 14 10 Average Corruption 5 | . . . 1 . 2 6 9 9 9 3 Corruption Purged 2 | . . . 2 . . . . . . . Corruption Blocked . | . . . . . . . . . . . Effects 157 | . . . 16 . 7 41 28 20 32 13 Message Errors 34 | . . . 4 . 2 8 10 3 4 3 Matter Fused 40 | . . . 6 . 3 5 9 5 10 2 Heat Flow Errors 18 | . . . 1 . 2 7 3 1 2 2 Energy Discharges 16 | . . . 3 . . 4 3 1 4 1 Parts Rejected 4 | . . . 1 . . 2 . 1 . . Parts Fused 1 | . . . . . . . . . 1 . Data Loss (minor) 13 | . . . 1 . . 2 2 2 4 2 Data Loss (major) 10 | . . . . . . 7 . 2 1 . Misfires 6 | . . . . . . 1 . 2 2 1 Alerts 6 | . . . . . . 1 1 2 2 . Misdirections 1 | . . . . . . . . . . 1 Weapon Failures 8 | . . . . . . 4 . 1 2 1 Overload Shots 5 | . . . . . . . 3 1 1 . Overflow Damage 43 | . 8 . 28 . . . . . . 7 Projectiles 29 | . 1 . 28 . . . . . . . Explosions 14 | . 7 . . . . . . . . 7 Melee . | . . . . . . . . . . . Knockbacks . | . . . . . . . . . . . Impact . | . . . . . . . . . . . Kinetic . | . . . . . . . . . . . Secondary . | . . . . . . . . . . . Self-Inflicted Damage 341 | . . . . . . . . . 205 136 Shots 4 | . . . . . . . . . 2 2 Rammed 5 | . . . . . . . . . . 5 Targets Rammed 20 | . 1 3 2 . . . . . 9 5 Kicked 15 | . 1 3 2 . . . . . 9 . Crushed . | . . . . . . . . . . . Highest Temperature 465 | . 176 153 315 238 69 255 414 232 234 465 Average Temperature 71 | . 60 35 77 64 24 61 113 67 62 99 Received Heat Transfer 3035 | . 291 327 792 234 39 542 63 135 231 381 Effects 9 | . . . 2 2 . . 2 . . 3 Shutdowns 4 | . . . . . . . 2 . . 2 Energy Bleed 1 | . . . . . . . . . . 1 Interference 3 | . . . 1 2 . . . . . . Short Circuit 1 | . . . 1 . . . . . . . Siege Activations . | . . . . . . . . . . . Martial Activations . | . . . . . . . . . . . Shielding Activations . | . . . . . . . . . . . Robots Disrupted . | . . . . . . . . . . . Combat Hostiles . | . . . . . . . . . . . Robots Corrupted 2 | . . . . . . . . . 1 1 Combat Hostiles . | . . . . . . . . . . . Parts Fried 4 | . . . . . . . . . 1 3 Impact Corruptions . | . . . . . . . . . . . Robots Melted 15 | . . 2 5 . 1 4 . 1 1 1 Combat Hostiles 15 | . . 2 5 . 1 4 . 1 1 1 Parts Melted 105 | . . 13 18 9 5 24 . 10 18 8 Heat Transferred 34056 | . 481 4033 6870 3535 1720 5271 1557 1805 4235 4549 Parts Sabotaged . | . . . . . . . . . . . Parts Stolen . | . . . . . . . . . . . Parts Stripped . | . . . . . . . . . . . Power Chain Reactions 2 | . . . . . . . . . 1 1 Alert | -11 -10 -9 -8 -7 -6 -6 -6 -6 -6 -5 ------- Run | Yrd Mat Mat Mat Fac Fac Ext Cet Arc Hub Fac Maximum Alert Level 2 | . 1 2 2 1 . . . . 1 1 Low Security (%) 76 | 100 73 61 28 91 100 100 100 100 96 76 Level 1 21 | . 26 29 70 8 . . . . 3 23 Level 2 1 | . . 8 1 . . . . . . . Level 3 . | . . . . . . . . . . . Level 4 . | . . . . . . . . . . . Level 5 . | . . . . . . . . . . . High Security . | . . . . . . . . . . . Max Security . | . . . . . . . . . . . Peak Influence 428 | 10 346 428 405 235 78 149 160 25 210 358 Initial 170 | . . 141 170 154 33 1 74 23 . 84 Average 119 | 2 105 212 263 113 21 45 65 4 46 85 Influence Increases 5441 | 60 590 835 810 387 161 635 340 96 633 894 Destroy 0b10 Robot/C 3160 | . 320 480 580 220 100 440 220 80 300 420 Destroy 0b10 Robot/NC 360 | 60 60 55 50 10 25 15 10 . 35 40 Destroy Leader 684 | . 74 146 134 60 32 52 10 . 94 82 Allied During Kill 79 | . . . . . . 38 41 . . . Successful Hack 108 | . 4 24 18 . 4 . 16 . . 42 Disable Machine 345 | . 45 15 15 15 . 30 30 15 90 90 Destroy Structure 300 | . 72 10 13 22 . 15 13 1 84 70 Lose Combat Pursuer 405 | . 15 105 . 60 . 45 . . 30 150 Influence Decreases 5083 | 60 256 765 873 659 226 506 415 154 460 709 Entered New Map 836 | . . 193 234 187 36 3 59 35 . 89 Time Decay 3495 | 60 246 562 589 452 190 373 306 76 284 357 Lost Part 409 | . 10 10 50 20 . 50 10 30 100 129 Lost Ally 133 | . . . . . . 80 40 13 . . Purge Threat 210 | . . . . . . . . . 76 134 Squads Dispatched 21 | . 4 2 4 2 1 . 1 . 4 3 Investigation 7 | . 2 1 1 . . . 1 . . 2 Extermination 6 | . . . . 2 1 . . . 2 1 Reinforcement 8 | . 2 1 3 . . . . . 2 . Assault . | . . . . . . . . . . . Garrison . | . . . . . . . . . . . Intercept . | . . . . . . . . . . . Searches Triggered . | . . . . . . . . . . . Construction Impeded . | . . . . . . . . . . . Haulers Reinforced 1 | . . . . . . . . . 1 . Active Scanning Responses . | . . . . . . . . . . . Cargo Convoy Interrupts 1 | . . . . . . . . . . 1 Stealth | -11 -10 -9 -8 -7 -6 -6 -6 -6 -6 -5 --------- Run | Yrd Mat Mat Mat Fac Fac Ext Cet Arc Hub Fac Distress Signals 15 | . 1 3 4 . . 2 2 . 2 1 Communications Jammed 16 | . . . . . . . . . . 16 Distress Signals 16 | . . . . . . . . . . 16 Times Spotted 256 | . 25 35 37 18 7 28 12 9 23 62 Peak Tracking Total 13 | . 6 8 5 4 3 6 5 2 5 13 Tactical Retreats 11 | . 1 2 . 1 . 2 . . 2 3 Traps | -11 -10 -9 -8 -7 -6 -6 -6 -6 -6 -5 ------- Run | Yrd Mat Mat Mat Fac Fac Ext Cet Arc Hub Fac Traps Triggered 15 | . 2 . 5 1 1 3 . . . 3 Indirectly . | . . . . . . . . . . . Trap Hack Attempts . | . . . . . . . . . . . Triggered . | . . . . . . . . . . . Disarmed . | . . . . . . . . . . . Reprogrammed . | . . . . . . . . . . . Reused . | . . . . . . . . . . . Traps Extracted . | . . . . . . . . . . . Installed . | . . . . . . . . . . . Triggered . | . . . . . . . . . . . Machines | -11 -10 -9 -8 -7 -6 -6 -6 -6 -6 -5 ---------- Run | Yrd Mat Mat Mat Fac Fac Ext Cet Arc Hub Fac Machines Disabled 23 | . 3 1 1 1 . 2 2 1 6 6 Max in Single Turn 6 | . 1 1 1 1 . . 1 1 6 4 Garrison Access 2 | . . . 1 . . . . . . 1 Network Hub 1 | . . . . . . . . . 1 . Energy Cycler 2 | . . . . . . 2 . . . . Machines Repaired . | . . . . . . . . . . . Machines Dismantled . | . . . . . . . . . . . Machines Sabotaged . | . . . . . . . . . . . Overloaded Fab Kills . | . . . . . . . . . . . Hacking | -11 -10 -9 -8 -7 -6 -6 -6 -6 -6 -5 --------- Run | Yrd Mat Mat Mat Fac Fac Ext Cet Arc Hub Fac Machines Accessed 39 | . 5 7 7 1 2 6 3 1 2 5 Terminals 34 | . 5 6 5 1 2 6 3 . 2 4 Fabricators . | . . . . . . . . . . . Repair Stations 2 | . . 1 1 . . . . . . . Recycling Units . | . . . . . . . . . . . Scanalyzers . | . . . . . . . . . . . Garrison Access 2 | . . . 1 . . . . . . 1 Total Hacks 101 | . 12 24 20 1 3 7 8 7 5 14 Successful 58 | . 7 20 12 . 1 2 3 7 1 5 Failed 43 | . 5 4 8 1 2 5 5 . 4 9 Catastrophic 17 | . . 1 1 . 1 4 4 . 3 3 Database Lockouts . | . . . . . . . . . . . Manual 57 | . 11 15 10 . 1 . 2 1 4 13 Terminals 80 | . 12 15 16 1 3 7 8 . 5 13 Fabricators . | . . . . . . . . . . . Repair Stations 11 | . . 9 2 . . . . . . . Recycling Units . | . . . . . . . . . . . Scanalyzers . | . . . . . . . . . . . Garrison Access 3 | . . . 2 . . . . . . 1 Terminal Hacks 16 | . . . 1 . 1 2 3 7 1 1 Record 10 | . . . . . . . 3 7 . . Open Door 2 | . . . . . 1 1 . . . . Unreport Threat 2 | . . . . . . . . . 1 1 Locate Traps 1 | . . . . . . 1 . . . . Zone Layout 1 | . . . 1 . . . . . . . Fabricator Hacks . | . . . . . . . . . . . Repair Station Hacks 9 | . . 8 1 . . . . . . . Scan Component 5 | . . 4 1 . . . . . . . Repair 4 | . . 4 . . . . . . . . Recycling Unit Hacks . | . . . . . . . . . . . Scanalyzer . | . . . . . . . . . . . Garrison Access Hacks 2 | . . . 1 . . . . . . 1 Seal Access 2 | . . . 1 . . . . . . 1 Unauthorized Hacks 31 | . 7 12 9 . . . . . . 3 Terminals 31 | . 7 12 9 . . . . . . 3 Botnet 12 | . 2 5 4 . . . . . . 1 Operators 1 | . . 1 . . . . . . . . Skim 18 | . 5 6 5 . . . . . . 2 Fabricators . | . . . . . . . . . . . Repair Stations . | . . . . . . . . . . . Recycling Units . | . . . . . . . . . . . Scanalyzers . | . . . . . . . . . . . Garrison Access . | . . . . . . . . . . . Data Cores Recovered 4 | . . 1 . . . 2 . . . 1 Used . | . . . . . . . . . . . Hacking Detections 28 | . 4 4 5 1 1 5 3 . 2 3 Full Trace Events 2 | . . 1 . . . . 1 . . . Feedback Events . | . . . . . . . . . . . Feedback Blocked . | . . . . . . . . . . . Robot Schematics Acquired . | . . . . . . . . . . . Robots Built . | . . . . . . . . . . . Authchips . | . . . . . . . . . . . Time . | . . . . . . . . . . . Total Robot Build Rating . | . . . . . . . . . . . Part Schematics Acquired . | . . . . . . . . . . . Parts Built . | . . . . . . . . . . . Authchips . | . . . . . . . . . . . Time . | . . . . . . . . . . . Total Part Build Rating . | . . . . . . . . . . . Parts Repaired 4 | . . 4 . . . . . . . . Time 104 | . . 104 . . . . . . . . Parts Recycled . | . . . . . . . . . . . Recycled Matter . | . . . . . . . . . . . Retrieved Matter . | . . . . . . . . . . . Retrieved Components . | . . . . . . . . . . . Parts Scanalyzed . | . . . . . . . . . . . Part Schematics Acquired . | . . . . . . . . . . . Parts Damaged . | . . . . . . . . . . . Bothacking | -11 -10 -9 -8 -7 -6 -6 -6 -6 -6 -5 ------------ Run | Yrd Mat Mat Mat Fac Fac Ext Cet Arc Hub Fac Used RIF Installer . | . . . . . . . . . . . Robots Hacked . | . . . . . . . . . . . Non-combat . | . . . . . . . . . . . Combat . | . . . . . . . . . . . Robot Hacks Applied . | . . . . . . . . . . . Relay Couplers Released . | . . . . . . . . . . . Fabnet Peak Effective % . | . . . . . . . . . . . Robots Rewired 10 | . . . . . . 10 . . . . Allies Hacked . | . . . . . . . . . . . Hacks Repelled . | . . . . . . . . . . . Allies | -11 -10 -9 -8 -7 -6 -6 -6 -6 -6 -5 -------- Run | Yrd Mat Mat Mat Fac Fac Ext Cet Arc Hub Fac Total Allies 12 | . . . . . . 12 . . . . Largest Group 4 | . . . . . . 4 3 1 . . Highest-Rated Group 129 | . . . . . . 129 109 34 . . Highest-Rated Ally 39 | . . . . . . 39 39 34 . . Total Orders . | . . . . . . . . . . . Ally Attacks 89 | . . . . . . 39 49 1 . . Total Damage 1827 | . . . . . . 1022 805 . . . Kills 16 | . . . . . . 6 10 . . . Allies Corrupted . | . . . . . . . . . . . Allies Melted 1 | . . . . . . 1 . . . . Intel | -11 -10 -9 -8 -7 -6 -6 -6 -6 -6 -5 ------- Run | Yrd Mat Mat Mat Fac Fac Ext Cet Arc Hub Fac Active Infowar (turns) 2336 | 27 878 762 . . 389 50 . . . 230 Sensors 215 | . . . . . . . . . . 215 Seismic 2106 | 27 878 762 . . 389 50 . . . . Jamming 200 | . . . . . . . . . . 200 Robot Analysis Total . | . . . . . . . . . . . Derelict Logs Recovered . | . . . . . . . . . . . Drone Launches . | . . . . . . . . . . . Drone Recoveries . | . . . . . . . . . . . Exploration | -11 -10 -9 -8 -7 -6 -6 -6 -6 -6 -5 ------------- Run | Yrd Mat Mat Mat Fac Fac Ext Cet Arc Hub Fac Turns Passed 11233 | 298 878 1668 1852 1127 676 1363 788 457 927 1199 Spaces Moved 6207 | 135 493 839 776 758 458 688 595 213 422 830 Core 163 | 4 . . . . . . . . . 159 Treads . | . . . . . . . . . . . Legs 6044 | 131 493 839 776 758 458 688 595 213 422 671 Wheels . | . . . . . . . . . . . Hover . | . . . . . . . . . . . Flight . | . . . . . . . . . . . Fastest Speed 50 | 50 120 120 120 125 124 120 120 120 112 50 Average Speed 126 | 117 136 120 122 125 125 122 120 181 158 108 Slowest Speed 195 | 120 190 120 130 127 126 195 120 190 190 192 Overloaded Moves . | . . . . . . . . . . . Propulsion Burnouts . | . . . . . . . . . . . Robots Hopped . | . . . . . . . . . . . Potential Cave-ins . | . . . . . . . . . . . Cave-ins Triggered . | . . . . . . . . . . . Exploration Rate (%) 50 | 5 70 70 54 17 12 77 95 98 37 25 Regions Visited 10 Branch Regions 4 Pre-discovered Areas 5 | . 2 2 1 . . . . . . . Known Exits Taken 5 | . 1 1 1 1 . . . . 1 . Unknown Exits Taken 5 | 1 . . . . 1 1 1 1 . . Scrap Searched . | . . . . . . . . . . . Spaces Dug . | . . . . . . . . . . . Terrain Destroyed 319 | . 76 5 14 22 . . . 1 168 33 Melee . | . . . . . . . . . . . Projectile 21 | . . . 14 . . . . 1 5 1 AOE 298 | . 76 5 . 22 . . . . 163 32 Terrain Rammed . | . . . . . . . . . . . Walls Destroyed . | . . . . . . . . . . . Machines Disabled . | . . . . . . . . . . . Actions | -11 -10 -9 -8 -7 -6 -6 -6 -6 -6 -5 --------- Run | Yrd Mat Mat Mat Fac Fac Ext Cet Arc Hub Fac Total 8614 | 205 610 1309 1492 858 511 1127 641 253 591 1017 Wait 1213 | 30 31 302 501 33 20 123 4 19 108 42 Move 6197 | 134 492 838 775 757 457 687 594 212 421 830 Hop . | . . . . . . . . . . . Pick Up 85 | 1 10 19 18 4 3 6 3 . 7 14 Fast Attach 29 | 7 . 2 6 1 1 4 . 2 . 6 Attach 35 | . 1 3 4 3 1 3 1 3 7 9 Detach 2 | . . . . . . . . . . 2 Swap 206 | 1 19 26 45 18 11 24 11 3 6 42 Drop 138 | . 10 18 37 13 2 25 11 1 2 19 Fire 475 | 32 46 98 104 29 16 41 17 13 31 48 Melee . | . . . . . . . . . . . Ram 5 | . . . . . . . . . . 5 Kick 15 | . 1 3 2 . . . . . 9 . Crush . | . . . . . . . . . . . Escape Stasis 7 | . . . . . . 7 . . . . Rewire 207 | . . . . . . 207 . . . . Trap . | . . . . . . . . . . . Miscellaneous . | . . . . . . . . . . . Route ------- -11/Scrapyard -10/Materials (discovered 5 exits: *Mat x3 / [*Min] / [*Sub]) -9/Materials (discovered 4 exits: *Mat x3 / Min) -8/Materials (discovered 5 exits: *Fac x3 / [*Sto x2]) -7/Factory (discovered 4 exits: *Fac x4) -6/Factory (discovered 3 exits: Fac / [*Low] / *Ext) -6/Extension (discovered 3 exits: *Fac x2 / *Cet) -6/Cetus (discovered 3 exits: *Fac x2 / *Arc) -6/Archives (discovered 3 exits: *Fac / *Hub x2) -6/Hub_04(d) (discovered 2 exits: *Fac x2) -5/Factory History --------- Turn | Location | Event 6 | -11/Scrapyard | Discovered new exit (range 15) 299 | -11/Scrapyard | Entered Materials 300 | -10/Materials | Build established: Mutant 487 | -10/Materials | Discovered new exit (range 6) 677 | -10/Materials | Discovered new exit (range 10) 781 | -10/Materials | Discovered new exit (range 8) 944 | -10/Materials | Build established: Scavenger-Mutant 1026 | -10/Materials | Discovered new exit (range 15) 1051 | -10/Materials | Learned Storage security intel 1083 | -10/Materials | Learned 2 Storage zone layouts 1119 | -10/Materials | Learned location of Subcaves (-10) 1123 | -10/Materials | Learned 2 Mines zone layouts 1124 | -10/Materials | Learned 4 Recycling zone layouts 1125 | -10/Materials | Learned 4 Subcaves zone layouts 1129 | -10/Materials | Identified exit to Materials 1140 | -10/Materials | Learned location of 1 exit from Recycling 1177 | -10/Materials | Entered another Materials area 1177 | -9/Materials | Evolved 2 slots: Propulsion x2 1178 | -9/Materials | Identified exit to Materials 1305 | -9/Materials | Repaired Seismic Detector 1333 | -9/Materials | Repaired Med. Storage Unit 1373 | -9/Materials | Repaired Aluminum Leg 1401 | -9/Materials | Repaired Beam Cannon 1870 | -9/Materials | Discovered exit to Materials (range 3) 2575 | -9/Materials | Identified exit to Mines 2607 | -9/Materials | Learned location of 1 exit from Storage 2643 | -9/Materials | Loaded intel: 17 trap records 2646 | -9/Materials | Learned 4 Recycling zone layouts 2743 | -9/Materials | Build established: Mutant 2845 | -9/Materials | Entered another Materials area 2845 | -8/Materials | Evolved 2 slots: Utility x1, Weapon x1 3147 | -8/Materials | Build established: Scavenger-Gunner 3280 | -8/Materials | Discovered new exit (range 13) 3373 | -8/Materials | Discovered new exit (range 12) 3531 | -8/Materials | Lost 4 parts (1p1u2w) 3771 | -8/Materials | Discovered new exit (range 12) 4143 | -8/Materials | Discovered new exit (range 12) 4342 | -8/Materials | Learned location of 1 exit from Recycling 4413 | -8/Materials | Identified exit to Factory 4461 | -8/Materials | Build established: Gunner 4473 | -8/Materials | Learned Storage stockpile data 4521 | -8/Materials | Learned 4 Recycling zone layouts 4557 | -8/Materials | Learned 4 Factory zone layouts 4582 | -8/Materials | Learned location of Lower Caves (-7) 4617 | -8/Materials | Learned 8 Factory zone layouts 4697 | -8/Materials | Entered Factory 4697 | -7/Factory | Evolved 2 slots: Power x1, Utility x1 4698 | -7/Factory | Identified exit to Factory 4857 | -7/Factory | Destroyed 7 combat bots 5161 | -7/Factory | Build established: Scavenger-Gunner 5824 | -7/Factory | Entered another Factory area 5824 | -6/Factory | Evolved 2 slots: Propulsion x1, Utility x1 5825 | -6/Factory | Identified exit to Factory 6306 | -6/Factory | Discovered new exit (range 16) 6494 | -6/Factory | Discovered new exit (range 6) 6500 | -6/Factory | Entered Extension 6576 | -6/Extension | Energy Cycler disabled 6576 | -6/Extension | Rescued a captive Derelict 6580 | -6/Extension | Rescued a captive Derelict 6583 | -6/Extension | Rescued a captive Derelict 6790 | -6/Extension | Spotted B-75 Beast 6793 | -6/Extension | Extracted ID and sensor layout for unrecognized location from A7's data core 6847 | -6/Extension | Destroyed B-75 Beast 6876 | -6/Extension | Spotted B-75 Beast 6916 | -6/Extension | Destroyed B-75 Beast 6993 | -6/Extension | Discovered exit to Factory (range 16) 7255 | -6/Extension | Lost 3 allies 7695 | -6/Extension | Lost 3 allies 7820 | -6/Extension | Discovered exit to Factory (range 10) 7821 | -6/Extension | Discovered new exit (range 6) 7863 | -6/Extension | Entered Cetus 7863 | -6/Cetus | Accompanied by 3 allies 7878 | -6/Cetus | Spotted Cetus Guard 7879 | -6/Cetus | Spotted Cetus Guard 7882 | -6/Cetus | Spotted Cetus Guard 7882 | -6/Cetus | Spotted Cetus Guard 7883 | -6/Cetus | Allies destroyed Cetus Guard 7885 | -6/Cetus | Allies destroyed Cetus Guard 7899 | -6/Cetus | Destroyed Cetus Guard 7900 | -6/Cetus | Allies destroyed Cetus Guard 7976 | -6/Cetus | Discovered exit to Factory (range 16) 8119 | -6/Cetus | Discovered new exit (range 15) 8140 | -6/Cetus | Spotted Cetus Guard 8146 | -6/Cetus | Spotted Cetus Guard 8147 | -6/Cetus | Spotted Cetus Guard 8150 | -6/Cetus | Allies destroyed Cetus Guard 8158 | -6/Cetus | Allies destroyed Cetus Guard 8193 | -6/Cetus | Discovered exit to Factory (range 15) 8199 | -6/Cetus | Met Revision 17 8613 | -6/Cetus | Security sweep announced 8651 | -6/Cetus | Entered Archives 8651 | -6/Archives | Accompanied by 1 ally 8788 | -6/Archives | Lost 3 parts (2n1w) 8801 | -6/Archives | Unable to access archive contents 8820 | -6/Archives | Unable to access archive contents 8839 | -6/Archives | Unable to access archive contents 8858 | -6/Archives | Unable to access archive contents 8865 | -6/Archives | Discovered new exit (range 13) 8926 | -6/Archives | Discovered exit to Factory (range 15) 8991 | -6/Archives | Discovered new exit (range 16) 9076 | -6/Archives | Unable to access archive contents 9108 | -6/Archives | Entered Hub_04(d) 9337 | -6/Hub_04(d) | Discovered exit to Factory (range 4) 9593 | -6/Hub_04(d) | Discovered exit to Factory (range 6) 9951 | -6/Hub_04(d) | Network Hub disabled 9952 | -6/Hub_04(d) | System corruption reached 10% 10003 | -6/Hub_04(d) | Spotted Lightning 10005 | -6/Hub_04(d) | Spotted Lightning 10007 | -6/Hub_04(d) | Spotted Lightning 10010 | -6/Hub_04(d) | Core integrity fell below 50% 10035 | -6/Hub_04(d) | Entered Factory 10035 | -5/Factory | Evolved 2 slots: Utility x1, Weapon x1 10040 | -5/Factory | Lost 4 parts (1n1u2w) 11142 | -5/Factory | Cargo convoy interrupted 11150 | -5/Factory | Released all parts (10) 11155 | -5/Factory | Core integrity fell below 50% 11180 | -5/Factory | Lost 7 parts (1p1n1u4w) 11214 | -5/Factory | Core integrity fell below 20% 11219 | -5/Factory | System corruption reached 10% 11234 | -5/Factory | Destroyed by P-70 Sage with Tesla Rifle Last Messages --------------- 11151_ U-05 Engineer lays Concrete. 11152_ Slug penetrates Wall. 11152_ U-05 Engineer lays Concrete. 11153_ P-70 Sage resets H-66 Slayer, system corruption cleaned. 11190_ System corrupted: Component data lost. 11191_ O-24 Administrator: "IFF HANDSHAKE FAILED. SECURING TERMINAL." 11209_ Slammed into K-01 Serf. 11211_ Triggered Alarm Trap. 11211_ An alarm sounds. 11211_ ALERT: Alarm triggered, dispatching investigation squad. 11214_ Slammed into G-50 Soldier. 11216_ P-70 Sage resets P-70 Sage, system corruption cleaned. 11217_ Slammed into G-50 Soldier. 11218_ Destabilizing: System corrupted (+1). 11219_ Slammed into G-50 Soldier. 11220_ |9 WMAPF75%OXJLKQ